bitfinex/quotes_BTCUSD_20260215
["timestamp","ask_amount","ask_price","bid_price","bid_amount"]
[1771144073635,0.06,70692.0,70679.0,0.07074211]
[1771144073866,0.02426429,70691.0,70676.0,0.02358076]
[1771144073996,0.02426429,70691.0,70675.0,0.01601554]
[1771144074201,0.02426429,70690.0,70675.0,0.08676174]
[1771144074426,0.02426429,70689.0,70678.0,0.07074336]
[1771144074632,0.02426429,70689.0,70675.0,0.01601554]
[1771144074792,0.02426429,70689.0,70680.0,0.07074134]
[1771144074994,0.02426429,70689.0,70681.0,0.0707403]
[1771144075669,0.02426429,70689.0,70682.0,0.07073919]
[1771144076293,0.02426429,70689.0,70681.0,0.07074035]
[1771144076591,0.02426429,70689.0,70682.0,0.0707389]
[1771144076948,0.06,70692.0,70683.0,0.01601554]
[1771144078012,0.06,70692.0,70684.0,0.07073736]
[1771144078268,0.05883678,70692.0,70684.0,0.07073736]
[1771144078436,0.05883678,70692.0,70683.0,0.01601554]
[1771144078640,0.05883678,70692.0,70683.0,0.08675354]
[1771144078985,0.05883678,70692.0,70683.0,0.01601554]
[1771144079194,0.05883678,70692.0,70684.0,0.07073717]
[1771144079610,0.05883678,70692.0,70684.0,0.07073706]
[1771144080211,0.05883678,70692.0,70684.0,0.07073665]
[1771144080441,0.05883678,70692.0,70683.0,0.0867539]
[1771144080442,0.05883678,70692.0,70685.0,0.07073607]
[1771144080625,0.05883678,70692.0,70683.0,0.0867539]
[1771144080979,0.05883678,70692.0,70684.0,0.07073699]
[1771144081414,0.05883678,70692.0,70683.0,0.08675347]
[1771144081649,0.05883678,70692.0,70683.0,0.08675359]
[1771144081850,0.05883678,70692.0,70684.0,0.07073727]
[1771144082042,0.05883678,70692.0,70683.0,0.09431862]
[1771144082607,0.05883678,70692.0,70683.0,0.02358076]
[1771144083054,0.05883678,70692.0,70683.0,0.09431902]
[1771144083510,0.05883678,70692.0,70683.0,0.09431821]
[1771144083730,0.05883678,70692.0,70683.0,0.02358076]
[1771144084353,0.05903678,70692.0,70683.0,0.02358076]
[1771144085564,0.05903678,70692.0,70683.0,0.09431819]
[1771144085788,0.05903678,70692.0,70683.0,0.09431834]
[1771144085993,0.05903678,70692.0,70684.0,0.0707372]
[1771144086409,0.05903678,70692.0,70684.0,0.07073644]
[1771144086607,0.05903678,70692.0,70685.0,0.07073624]
[1771144087148,0.05903678,70692.0,70684.0,0.07073657]
[1771144087387,0.05903678,70692.0,70685.0,0.08675187]
[1771144087561,0.05903678,70692.0,70685.0,0.01601554]
[1771144088405,4e-05,70690.0,70686.0,0.07073475]
[1771144088611,0.05903678,70692.0,70685.0,0.0395963]
[1771144088815,0.05903678,70692.0,70689.0,0.07073236]
[1771144089028,0.05903678,70692.0,70689.0,0.06396049]
[1771144089464,0.0279858,70692.0,70688.0,0.07073312]
[1771144089730,0.0279858,70692.0,70680.0,0.47254289]
[1771144089929,0.0279858,70692.0,70680.0,0.28300273]
[1771144090130,0.0002,70692.0,70684.0,0.07073656]
[1771144090681,0.0002,70692.0,70680.0,0.07078059]
[1771144090887,0.0002,70692.0,70681.0,0.07073948]
[1771144091103,0.0002,70692.0,70682.0,0.07073927]
[1771144091925,0.0002,70692.0,70681.0,0.08675408]
[1771144092136,0.0002,70692.0,70681.0,0.01601554]
[1771144092347,0.02446429,70692.0,70681.0,0.01601554]
[1771144093213,0.02446429,70692.0,70682.0,0.07073911]
[1771144093658,0.02446429,70692.0,70681.0,0.08675411]
[1771144094310,0.02446429,70692.0,70681.0,0.01601554]
[1771144095202,0.07073049,70691.0,70681.0,0.01601554]
[1771144095375,0.02363942,70690.0,70681.0,0.01601554]
[1771144096056,0.07073159,70690.0,70681.0,0.01601554]
[1771144096267,0.02363942,70688.0,70674.0,0.00022]
[1771144096469,0.24954942,70689.0,70674.0,0.00022]
[1771144096675,0.24954942,70689.0,70658.0,0.01714697]
[1771144096676,0.22591,70674.0,70658.0,0.01714697]
[1771144096875,0.02363942,70673.0,70658.0,0.01714697]
[1771144097078,0.02363942,70671.0,70658.0,0.01714697]
[1771144097620,0.07075137,70670.0,70658.0,0.01714697]
[1771144097904,0.07075074,70671.0,70658.0,0.01714697]
[1771144098076,0.02363942,70670.0,70658.0,0.01714697]
[1771144098293,0.02363942,70670.0,70666.0,0.00022]
[1771144098911,0.02363942,70670.0,70658.0,0.01714697]
[1771144099201,0.02363942,70673.0,70660.0,0.07076068]
[1771144099774,0.02363942,70673.0,70658.0,0.01714697]
[1771144099977,0.0707494,70672.0,70658.0,0.08791018]
[1771144100185,0.00012979,70674.0,70658.0,0.08791018]
[1771144100186,0.02363942,70671.0,70658.0,0.08791018]
[1771144100388,0.02347553,70671.0,70658.0,0.08791018]
[1771144100815,0.02347553,70671.0,70659.0,0.07098236]
[1771144101026,0.02347553,70671.0,70659.0,0.07098232]
[1771144101217,0.02347553,70671.0,70659.0,0.00022]
[1771144101414,0.02347553,70671.0,70661.0,0.07076034]
[1771144101415,0.06,70664.0,70661.0,0.07076034]
[1771144101797,0.06,70664.0,70659.0,0.07098202]
[1771144101997,0.06,70664.0,70660.0,0.07076136]
[1771144102200,0.06,70664.0,70659.0,0.00022]
[1771144102432,0.06,70664.0,70660.0,0.07076064]
[1771144102804,0.06,70664.0,70661.0,0.07076039]
[1771144103155,0.06,70664.0,70659.0,0.00022]
[1771144103356,4e-05,70660.0,70659.0,0.00018]
[1771144103565,0.06,70664.0,70661.0,0.07076025]
[1771144103898,0.00157107,70664.0,70659.0,0.00018]
[1771144104086,0.00157107,70664.0,70660.0,0.07076125]
[1771144104298,0.00157107,70664.0,70659.0,0.00018]
[1771144104486,4e-05,70670.0,70659.0,0.0709423]
[1771144104841,4e-05,70670.0,70659.0,0.00018]
[1771144105041,4e-05,70670.0,70662.0,0.07075872]
[1771144105455,4e-05,70670.0,70659.0,0.00018]
[1771144105456,4e-05,70670.0,70659.0,0.07094139]
[1771144105657,4e-05,70670.0,70665.0,0.07075562]
[1771144105846,0.00012979,70674.0,70661.0,0.22819436]
[1771144106054,0.00012979,70674.0,70665.0,0.07075583]
[1771144106565,0.00012979,70674.0,70666.0,0.07075516]
[1771144107106,0.00012979,70674.0,70664.0,0.070757]
[1771144107107,0.00012979,70674.0,70665.0,0.07075612]
[1771144107338,0.00012979,70674.0,70666.0,0.07075511]
[1771144107614,0.00012979,70674.0,70666.0,0.07075454]
[1771144108034,0.02347549,70673.0,70660.0,4e-05]
[1771144108210,0.02363942,70672.0,70660.0,4e-05]
[1771144108608,0.02363942,70672.0,70661.0,0.07076028]
[1771144109414,0.07075043,70671.0,70660.0,4e-05]
[1771144109773,0.02363942,70669.0,70660.0,4e-05]
[1771144110324,0.07075243,70669.0,70660.0,4e-05]
[1771144110522,0.02363942,70668.0,70660.0,4e-05]
[1771144110997,0.47329644,70670.0,70660.0,4e-05]
[1771144111201,0.02363942,70669.0,70660.0,4e-05]
[1771144111404,0.00012979,70674.0,70660.0,4e-05]
[1771144111606,0.07075226,70670.0,70660.0,4e-05]
[1771144111781,0.02363942,70669.0,70660.0,4e-05]
[1771144111961,0.0943919,70669.0,70659.0,0.00018]
[1771144112373,0.07075248,70669.0,70658.0,0.00024324]
[1771144112572,0.0002,70672.0,70651.0,0.00022]
[1771144112573,0.22591,70666.0,70651.0,0.00022]
[1771144112919,0.07075643,70665.0,70651.0,0.0709885]
[1771144113127,0.02363942,70664.0,70653.0,0.07076825]
[1771144113661,0.02363942,70664.0,70651.0,0.00022]
[1771144113876,0.47329644,70661.0,70651.0,0.00022]
[1771144114073,0.02363942,70660.0,70651.0,0.00022]
[1771144114699,0.02363942,70660.0,70652.0,0.07076936]
[1771144114889,0.02363942,70660.0,70651.0,0.00022]
[1771144114890,0.02363942,70667.0,70654.0,0.07076681]
[1771144115048,0.07075616,70666.0,70652.0,0.09352618]
[1771144115253,0.02363942,70666.0,70653.0,0.0707684]
[1771144115496,0.06,70661.0,70653.0,0.0707684]
[1771144115716,0.22591,70658.0,70615.0,0.01957422]
[1771144115919,0.47329644,70640.0,70625.0,0.22819436]
[1771144116135,0.47329644,70640.0,70626.0,0.22819436]
[1771144116324,0.49693586,70640.0,70626.0,0.22819436]
[1771144116524,0.02363942,70639.0,70625.0,0.22819436]
[1771144116728,0.02363942,70639.0,70626.0,0.07079545]
[1771144116902,0.02363942,70639.0,70628.0,0.070793]
[1771144117078,0.02363942,70639.0,70629.0,0.0707924]
[1771144117522,0.02363942,70639.0,70628.0,0.00043312]
[1771144117730,0.33848,70646.0,70628.0,0.00043312]
[1771144117731,0.33848,70646.0,70631.0,0.22819436]
[1771144117925,0.02363942,70644.0,70628.0,0.00468939]
[1771144118126,0.02363942,70644.0,70630.0,0.070791]
[1771144118346,4e-05,70640.0,70630.0,0.070711]
[1771144118673,4e-05,70640.0,70630.0,0.07079144]
[1771144118674,0.02363942,70638.0,70630.0,0.07079144]
[1771144118814,0.02363942,70638.0,70629.0,0.00043312]
[1771144119214,4e-05,70650.0,70629.0,0.22819436]
[1771144119444,4e-05,70650.0,70640.0,0.22819436]
[1771144119628,0.02367942,70660.0,70647.0,0.07077354]
[1771144120171,0.07080153,70660.0,70641.0,0.00043312]
[1771144120315,0.02363942,70659.0,70646.0,0.07120791]
[1771144120513,0.02363942,70659.0,70646.0,0.07077533]
[1771144120719,0.0708014,70660.0,70659.0,0.07076239]
[1771144120720,4e-05,70660.0,70659.0,0.07076239]
[1771144120923,0.02363942,70667.0,70656.0,0.07076441]
[1771144121131,0.02363942,70667.0,70657.0,0.07076386]
[1771144121369,0.07095051,70671.0,70650.0,4e-05]
[1771144121370,0.0002,70671.0,70650.0,4e-05]
[1771144121562,0.07076518,70657.0,70640.0,4e-05]
[1771144121805,0.00043259,70657.0,70641.0,0.00043312]
[1771144122013,0.21903028,70657.0,70641.0,0.07121346]
[1771144122218,0.21903028,70657.0,70643.0,0.23373489]
[1771144122219,0.02362301,70656.0,70643.0,0.23373489]
[1771144122384,0.02362301,70656.0,70642.0,0.07077859]
[1771144122794,0.02362301,70656.0,70645.0,0.07077632]
[1771144122996,0.02362301,70656.0,70644.0,0.07077701]
[1771144123218,0.02362301,70656.0,70640.0,4e-05]
[1771144123434,0.00043259,70657.0,70640.0,4e-05]
[1771144123435,0.02288568,70649.0,70640.0,4e-05]
[1771144123794,0.02288568,70650.0,70640.0,4e-05]
[1771144124011,0.07077472,70647.0,70640.0,4e-05]
[1771144124204,0.02288568,70647.0,70640.0,4e-05]
[1771144124408,0.02288568,70647.0,70620.0,0.47329644]
[1771144124409,0.02288568,70644.0,70626.0,0.02426671]
[1771144124959,0.02288568,70644.0,70627.0,0.21306861]
[1771144125194,0.02288568,70644.0,70631.0,0.07078959]
[1771144125385,0.02288568,70644.0,70631.0,0.07078997]
[1771144125535,0.02288568,70644.0,70632.0,0.07078884]
[1771144125748,0.02288568,70644.0,70640.0,0.00022]
[1771144125946,0.02288568,70644.0,70630.0,0.07079061]
[1771144126147,0.02288568,70644.0,70628.0,0.00043312]
[1771144126148,0.02288568,70644.0,70632.0,0.00022]
[1771144126430,0.0707735,70648.0,70634.0,0.07078646]
[1771144126631,0.02288568,70646.0,70633.0,0.00043312]
[1771144126818,0.23806845,70649.0,70633.0,0.00043312]
[1771144127041,0.02288568,70648.0,70633.0,0.00043312]
[1771144127234,0.02288568,70645.0,70633.0,0.00043312]
[1771144127434,0.02288568,70645.0,70632.0,0.0710085]
[1771144127637,0.02288568,70645.0,70634.0,0.00043312]
[1771144127844,0.093663,70645.0,70634.0,0.00043312]
[1771144128015,0.02288568,70644.0,70634.0,0.00043312]
[1771144128218,0.02288568,70643.0,70634.0,0.00043312]
[1771144128433,0.21518277,70649.0,70634.0,0.00043312]
[1771144128434,0.02288568,70649.0,70634.0,0.00043312]
[1771144128638,0.02288568,70646.0,70634.0,0.00043312]
[1771144128820,0.07077544,70646.0,70634.0,0.00043312]
[1771144129024,0.02288568,70645.0,70635.0,0.00043312]
[1771144130538,4e-05,70650.0,70637.0,0.23711532]
[1771144131004,4e-05,70650.0,70638.0,0.00043312]
[1771144131211,0.02292568,70650.0,70638.0,0.00043312]
[1771144131622,0.21518277,70655.0,70632.0,0.30764262]
[1771144131623,0.02288568,70659.0,70643.0,0.02426671]
[1771144131832,0.02288568,70659.0,70647.0,0.07077358]
[1771144132228,0.02288568,70659.0,70643.0,0.00043259]
[1771144132426,0.47333644,70710.0,70643.0,0.00043259]
[1771144132427,0.0002,70671.0,70661.0,0.07075957]
[1771144132633,0.0002,70671.0,70659.0,0.07076199]
[1771144132789,0.0002,70671.0,70660.0,0.07076077]
[1771144132997,0.0002,70671.0,70659.0,0.07076199]
[1771144133200,4e-05,70670.0,70657.0,0.07076399]
[1771144133405,0.02292568,70670.0,70658.0,0.07076336]
[1771144133730,0.02288568,70669.0,70659.0,0.07076139]
[1771144133930,0.02288568,70669.0,70658.0,0.07076324]
[1771144134144,0.02288568,70669.0,70655.0,0.28361438]
[1771144134352,0.02288568,70669.0,70656.0,0.07076439]
[1771144134573,0.02288568,70669.0,70658.0,0.07076313]
[1771144134983,0.07075623,70666.0,70653.0,0.02426671]
[1771144135214,0.09364191,70666.0,70653.0,0.02426671]
[1771144135360,0.02288568,70666.0,70655.0,0.070766]
[1771144135769,0.02288568,70666.0,70654.0,0.07076713]
[1771144135976,0.02288568,70666.0,70655.0,0.07076636]
[1771144136502,4e-05,70670.0,70656.0,0.23711532]
[1771144136834,4e-05,70670.0,70658.0,0.07076154]
[1771144137180,4e-05,70670.0,70656.0,0.02426671]
[1771144137562,0.02288568,70669.0,70656.0,0.07076463]
[1771144137768,0.02288568,70669.0,70651.0,0.23711532]
[1771144137978,0.02288568,70669.0,70651.0,0.21284861]
[1771144138188,0.02288568,70669.0,70657.0,0.07076408]
[1771144138424,0.07095109,70671.0,70660.0,0.47333644]
[1771144138425,0.0002,70671.0,70660.0,0.47333644]
[1771144138634,0.0002,70671.0,70666.0,0.07075488]
[1771144138854,0.0002,70671.0,70665.0,0.07075605]
[1771144139065,0.0002,70671.0,70663.0,0.02426671]
[1771144139272,0.0002,70671.0,70663.0,0.09502427]
[1771144139482,0.0002,70671.0,70662.0,0.07075871]
[1771144139703,0.0002,70671.0,70663.0,0.07075837]
[1771144139918,0.0002,70666.0,70663.0,0.07075837]
[1771144140611,0.0002,70666.0,70665.0,0.07075638]
[1771144140818,0.21518277,70665.0,70650.0,4e-05]
[1771144141022,0.0002,70666.0,70650.0,4e-05]
[1771144141023,0.02288568,70657.0,70650.0,4e-05]
[1771144141229,0.07076515,70657.0,70650.0,4e-05]
[1771144141439,0.07076539,70656.0,70650.0,4e-05]
[1771144141646,0.21518277,70660.0,70650.0,4e-05]
[1771144141647,0.75634383,70660.0,70650.0,4e-05]
[1771144141848,0.02288568,70654.0,70650.0,4e-05]
[1771144142058,0.02288568,70654.0,70643.0,0.07077824]
[1771144142270,0.02288568,70654.0,70643.0,0.07121083]
[1771144142684,0.75634429,70660.0,70643.0,0.07121083]
[1771144142685,0.02288568,70663.0,70643.0,0.00043259]
[1771144142936,0.07076582,70656.0,70643.0,0.00043259]
[1771144143140,0.09365271,70655.0,70643.0,0.00043259]
[1771144143350,0.02288568,70655.0,70643.0,0.00043259]
[1771144143774,0.02288568,70654.0,70643.0,0.00043259]
[1771144143980,0.02288568,70654.0,70638.0,0.23670081]
[1771144144189,0.02331827,70654.0,70638.0,0.23670081]
[1771144144397,0.02331827,70654.0,70643.0,0.07077834]
[1771144144832,0.02331827,70654.0,70632.0,0.00022]
[1771144144833,0.21518277,70651.0,70632.0,0.00022]
[1771144145041,0.07077616,70646.0,70632.0,0.07100928]
[1771144145266,0.02288568,70645.0,70633.0,0.07078805]
[1771144145474,0.02288568,70643.0,70632.0,0.00022]
[1771144145691,0.02288568,70642.0,70632.0,0.00022]
[1771144146124,0.07077825,70644.0,70632.0,0.00022]
[1771144146328,0.02288568,70643.0,70632.0,0.00022]
[1771144146567,0.09366422,70643.0,70632.0,0.00022]
[1771144146780,0.07078175,70640.0,70638.0,0.00022]
[1771144147007,0.42458289,70658.0,70627.0,0.00022]
[1771144147008,0.09064,70652.0,70627.0,0.00022]
[1771144147213,0.09064,70652.0,70618.0,1e-08]
[1771144147214,0.07080247,70619.0,70618.0,1e-08]
[1771144147424,0.21518277,70625.0,70618.0,1e-08]
[1771144147643,0.02288568,70624.0,70618.0,1e-08]
[1771144148501,0.023318,70624.0,70618.0,1e-08]
[1771144149535,0.09411561,70624.0,70618.0,1e-08]
[1771144149743,0.023318,70624.0,70618.0,1e-08]
[1771144150370,0.02288568,70623.0,70618.0,1e-08]
[1771144150613,0.02288568,70622.0,70618.0,1e-08]
[1771144151429,0.00043232,70624.0,70618.0,1e-08]
[1771144151430,0.02288568,70620.0,70618.0,1e-08]
[1771144152474,0.21371509,70627.0,70618.0,1e-08]
[1771144152691,0.02288568,70625.0,70618.0,0.00013004]
[1771144153339,0.07079846,70623.0,70615.0,0.01957422]
[1771144153524,0.02433031,70621.0,70615.0,0.01957422]
[1771144154623,0.02433031,70621.0,70615.0,0.01942539]
[1771144154841,0.07092813,70623.0,70607.0,0.02010832]
[1771144154842,0.2205489,70620.0,70607.0,0.02010832]
[1771144155044,0.09513563,70617.0,70607.0,0.02010832]
[1771144155267,0.02433031,70617.0,70607.0,0.02010832]
[1771144155471,0.09513602,70616.0,70607.0,0.02010832]
[1771144155675,0.02433031,70616.0,70607.0,0.02010832]
[1771144156846,0.09513661,70616.0,70607.0,0.02010832]
[1771144157201,0.02433031,70616.0,70607.0,0.09092233]
[1771144157422,0.46145435,70620.0,70607.0,0.02010832]
[1771144157631,0.07080462,70617.0,70607.0,0.02010832]
[1771144157858,0.02433031,70617.0,70607.0,0.02010832]
[1771144158268,0.02433031,70617.0,70607.0,0.09092274]
[1771144158477,0.02433031,70617.0,70605.0,0.02798168]
[1771144158903,0.02433031,70617.0,70606.0,0.0708147]
[1771144159145,0.07080627,70616.0,70603.0,0.09398175]
[1771144159361,0.02433031,70617.0,70603.0,0.02316412]
[1771144159573,0.0951349,70617.0,70604.0,0.0708167]
[1771144159807,0.02433031,70616.0,70608.0,0.07081273]
[1771144160029,0.02433031,70622.0,70604.0,0.02294412]
[1771144160256,0.02433031,70619.0,70607.0,0.07081427]
[1771144160473,0.33856,70624.0,70604.0,0.21903728]
[1771144160685,0.33856,70624.0,70603.0,0.00022]
[1771144160686,0.33856,70624.0,70612.0,0.07080876]
[1771144160882,0.47434875,70630.0,70607.0,0.0002947]
[1771144160883,0.02433031,70639.0,70621.0,0.02264641]
[1771144161082,0.02433031,70639.0,70629.0,0.07079205]
[1771144161211,0.02433031,70639.0,70624.0,0.28318589]
[1771144161212,0.02433031,70639.0,70628.0,0.07079319]
[1771144161650,0.02433031,70639.0,70620.0,0.21907728]
[1771144161651,0.02433031,70634.0,70620.0,4e-05]
[1771144161845,0.07079335,70629.0,70620.0,4e-05]
[1771144162073,0.0707931,70629.0,70620.0,4e-05]
[1771144162244,0.02433031,70628.0,70620.0,4e-05]
[1771144163494,0.07079509,70627.0,70620.0,4e-05]
[1771144163692,0.09512443,70628.0,70620.0,4e-05]
[1771144163896,0.07079489,70627.0,70620.0,4e-05]
[1771144164367,0.07079643,70626.0,70620.0,4e-05]
[1771144164566,0.09512766,70625.0,70620.0,4e-05]
[1771144164701,0.0707941,70628.0,70620.0,4e-05]
[1771144164903,0.07079445,70627.0,70620.0,4e-05]
[1771144165161,0.02433031,70630.0,70620.0,4e-05]
[1771144166522,0.07079099,70631.0,70620.0,4e-05]
[1771144166949,0.33856,70642.0,70620.0,4e-05]
[1771144166950,4e-05,70640.0,70621.0,0.2419814]
[1771144167099,4e-05,70640.0,70626.0,0.02294412]
[1771144167305,4e-05,70640.0,70627.0,0.02294412]
[1771144167513,4e-05,70640.0,70627.0,0.09373765]
[1771144167738,4e-05,70640.0,70628.0,0.07079345]
[1771144168063,0.07078321,70639.0,70627.0,0.02294412]
[1771144168275,4e-05,70640.0,70630.0,0.07079112]
[1771144168447,4e-05,70640.0,70627.0,0.0937385]
[1771144168653,4e-05,70640.0,70628.0,0.07079321]
[1771144168853,4e-05,70640.0,70628.0,0.02294412]
[1771144169059,0.07082145,70640.0,70628.0,0.0937373]
[1771144169273,4e-05,70640.0,70628.0,0.02294412]
[1771144169437,4e-05,70640.0,70631.0,0.07079025]
[1771144169643,4e-05,70640.0,70630.0,0.02294412]
[1771144170199,4e-05,70640.0,70630.0,0.07079141]
[1771144170410,4e-05,70640.0,70625.0,0.30612754]
[1771144170411,0.07078677,70635.0,70625.0,0.02294412]
[1771144170829,0.02433031,70638.0,70625.0,0.09373988]
[1771144170830,0.09511405,70638.0,70625.0,0.09373988]
[1771144171052,0.02433031,70638.0,70625.0,0.02294412]
[1771144171256,0.02433031,70638.0,70626.0,0.07079497]
[1771144171461,0.02433031,70638.0,70625.0,0.02294412]
[1771144172550,0.07078977,70632.0,70618.0,0.0708015]
[1771144172747,0.02433031,70629.0,70613.0,0.02294412]
[1771144172929,0.02433031,70629.0,70617.0,0.07080408]
[1771144173272,0.02433031,70629.0,70618.0,0.07080331]
[1771144173470,4e-05,70640.0,70626.0,0.09373936]
[1771144173648,0.07078441,70639.0,70626.0,0.02294412]
[1771144174461,0.0707852,70637.0,70626.0,0.02294412]
[1771144174641,0.07078363,70638.0,70626.0,0.02294412]
[1771144175226,0.07078463,70637.0,70626.0,0.02294412]
[1771144175436,0.0707837,70638.0,70626.0,0.02294412]
[1771144175654,0.07078441,70639.0,70626.0,0.02294412]
[1771144175855,0.07078414,70638.0,70626.0,0.02294412]
[1771144176267,0.07078358,70638.0,70626.0,0.02294412]
[1771144176467,0.0002,70634.0,70626.0,0.01573421]
[1771144177573,0.0002,70634.0,70626.0,0.08652902]
[1771144177971,0.0002,70634.0,70626.0,0.01573421]
[1771144178239,0.0002,70634.0,70626.0,0.01569421]
[1771144179025,0.0002,70634.0,70626.0,0.08648939]
[1771144179229,0.0002,70634.0,70626.0,0.01569421]
[1771144182351,0.0002,70634.0,70626.0,0.08648936]
[1771144182554,0.0002,70634.0,70626.0,0.08634053]
[1771144182762,0.0002,70634.0,70626.0,0.01554538]
[1771144182971,0.0002,70634.0,70627.0,0.0707944]
[1771144183387,0.0002,70634.0,70620.0,0.000285]
[1771144183611,0.0002,70634.0,70620.0,0.02490489]
[1771144183821,0.0002,70634.0,70624.0,0.07079724]
[1771144184251,4e-05,70640.0,70620.0,0.000285]
[1771144184496,4e-05,70640.0,70630.0,0.02461989]
[1771144184698,4e-05,70640.0,70630.0,0.09541056]
[1771144186111,4e-05,70640.0,70628.0,6.5e-05]
[1771144186318,0.47434875,70640.0,70626.0,0.22896089]
[1771144186527,4e-05,70640.0,70628.0,0.07079331]
[1771144187688,4e-05,70640.0,70629.0,0.0707924]
[1771144187895,4e-05,70640.0,70631.0,0.07078998]
[1771144188542,4e-05,70640.0,70630.0,0.07079113]
[1771144189850,4e-05,70640.0,70629.0,0.07079186]
[1771144190105,4e-05,70640.0,70624.0,6.5e-05]
[1771144190319,0.09440264,70640.0,70627.0,0.07079353]
[1771144190524,0.09440264,70640.0,70628.0,0.0707933]
[1771144190729,0.02362117,70640.0,70629.0,0.0707918]
[1771144190973,0.02362117,70640.0,70628.0,0.0707933]
[1771144191177,0.02362117,70640.0,70627.0,0.07079383]
[1771144191384,0.09440321,70640.0,70627.0,0.07079428]
[1771144191648,0.02382117,70640.0,70626.0,0.00022]
[1771144191872,0.47430875,70636.0,70626.0,0.00022]
[1771144192083,0.47430875,70630.0,70619.0,0.01787073]
[1771144192300,0.07079064,70631.0,70619.0,0.01787073]
[1771144192730,0.07079103,70631.0,70619.0,0.01787073]
[1771144192948,0.09437022,70633.0,70620.0,0.22896089]
[1771144193161,0.09437141,70633.0,70620.0,0.22896089]
[1771144193349,4e-05,70630.0,70620.0,0.22896089]
[1771144194226,4e-05,70630.0,70618.0,0.00022]
[1771144194432,0.0703054,70617.0,70612.0,0.00022]
[1771144194646,0.070804,70618.0,70612.0,0.00065232]
[1771144195070,0.07080467,70617.0,70612.0,0.00065232]
[1771144195290,0.070804,70618.0,70612.0,0.00065232]
[1771144195502,0.07080207,70620.0,70612.0,0.00065232]
[1771144195707,0.28320671,70620.0,70612.0,0.00065232]
[1771144195946,0.75750884,70622.0,70610.0,4e-05]
[1771144195947,0.07080484,70617.0,70610.0,4e-05]
[1771144196164,0.02358117,70614.0,70610.0,4e-05]
[1771144197057,0.07123846,70617.0,70610.0,4e-05]
[1771144197058,0.00043366,70617.0,70610.0,4e-05]
[1771144197869,0.00043366,70617.0,70610.0,0.07085147]
[1771144198072,0.00043366,70617.0,70610.0,4e-05]
[1771144198474,0.00043366,70617.0,70610.0,0.0708508]
[1771144198680,0.00043366,70617.0,70610.0,4e-05]
[1771144198889,0.00043366,70617.0,70607.0,0.07103392]
[1771144198890,0.07080916,70613.0,70607.0,0.00022]
[1771144199109,0.09439033,70613.0,70607.0,0.00022]
[1771144199277,0.07080958,70612.0,70607.0,0.00022]
[1771144199474,0.09439075,70612.0,70607.0,0.00022]
[1771144199852,0.02358117,70612.0,70607.0,0.00022]
[1771144200371,0.07080786,70614.0,70607.0,0.00022]
[1771144200575,0.00021999,70607.0,70605.0,0.00022]
[1771144202840,0.07103519,70607.0,70605.0,0.00022]
[1771144203485,0.00021999,70607.0,70605.0,0.00022]
[1771144203721,0.00021999,70607.0,70600.0,0.002242]
[1771144204336,0.02358117,70611.0,70600.0,0.002242]
[1771144204740,0.02358117,70616.0,70600.0,0.002242]
[1771144204916,0.28322364,70616.0,70600.0,0.002242]
[1771144205145,0.07081004,70612.0,70600.0,0.002242]
[1771144205348,0.07081439,70608.0,70600.0,0.002242]
[1771144205560,0.02358117,70612.0,70601.0,0.0808203]
[1771144205799,0.00043366,70617.0,70607.0,0.07081415]
[1771144206014,0.00043366,70617.0,70601.0,0.25683162]
[1771144206015,0.00043366,70617.0,70606.0,0.07081508]
[1771144206249,0.02358117,70616.0,70604.0,0.07103685]
[1771144206667,0.09438687,70616.0,70604.0,0.00022]
[1771144207080,0.02358117,70616.0,70604.0,0.00022]
[1771144207480,0.02358117,70616.0,70604.0,0.07103743]
[1771144207883,0.02358117,70616.0,70605.0,0.07081611]
[1771144208089,0.09438736,70616.0,70604.0,0.00022]
[1771144208300,0.02358117,70616.0,70604.0,0.07099742]
[1771144208503,0.02358117,70616.0,70604.0,0.00018]
[1771144208724,0.09438697,70616.0,70604.0,0.07099751]
[1771144208960,0.02358117,70616.0,70605.0,0.07081651]
[1771144209177,0.02358117,70616.0,70605.0,0.07081645]
[1771144209779,0.05960136,70609.0,70604.0,0.00018]
[1771144210139,0.02358117,70608.0,70604.0,0.00018]
[1771144210343,0.02358117,70608.0,70603.0,0.00022]
[1771144210561,0.05960136,70609.0,70603.0,0.00022]
[1771144210941,0.00043366,70617.0,70605.0,0.07081451]
[1771144210942,0.02401483,70617.0,70605.0,0.07081451]
[1771144211306,0.02401483,70617.0,70604.0,0.07081751]
[1771144211511,0.02401483,70617.0,70606.0,0.07081474]
[1771144211726,0.02401483,70617.0,70604.0,0.07081735]
[1771144211727,0.09481938,70617.0,70604.0,0.07081735]
[1771144212448,0.00043366,70617.0,70604.0,0.22896089]
[1771144212658,0.00043366,70617.0,70607.0,0.07081441]
[1771144212879,0.02358117,70616.0,70604.0,0.00022]
[1771144213099,0.02358117,70615.0,70604.0,0.00022]
[1771144213327,0.09381628,70615.0,70604.0,0.00022]
[1771144213533,0.02300905,70615.0,70605.0,0.07081649]
[1771144214699,0.02300905,70615.0,70604.0,0.07103689]
[1771144215307,0.97444044,70620.0,70604.0,0.07103689]
[1771144215308,0.38383429,70620.0,70611.0,0.07081014]
[1771144215490,0.07080314,70619.0,70611.0,0.00012962]
[1771144216133,0.85823473,70620.0,70611.0,0.00012962]
[1771144216399,0.38383429,70620.0,70611.0,0.02387739]
[1771144216600,0.38383429,70620.0,70612.0,0.02374777]
[1771144216813,0.38383429,70620.0,70613.0,0.07080835]
[1771144217229,0.38383429,70620.0,70611.0,0.07093817]
[1771144217230,0.21137228,70620.0,70611.0,0.00012962]
[1771144217435,0.21137228,70620.0,70613.0,0.02374777]
[1771144217636,0.21137228,70620.0,70616.0,0.0021]
[1771144217844,0.21137228,70620.0,70617.0,0.02374777]
[1771144218053,4e-05,70630.0,70617.0,0.07080445]
[1771144218264,0.47444044,70630.0,70617.0,0.09455205]
[1771144218471,0.47444044,70630.0,70616.0,0.0021]
[1771144218472,4e-05,70630.0,70619.0,0.02374777]
[1771144218688,4e-05,70630.0,70617.0,0.07080425]
[1771144218689,0.47444044,70630.0,70617.0,0.07080425]
[1771144218935,0.47444044,70630.0,70618.0,0.07080267]
[1771144219183,0.47444044,70630.0,70616.0,0.0021]
[1771144219184,4e-05,70630.0,70620.0,0.02374777]
[1771144219417,0.0002,70632.0,70623.0,0.21360545]
[1771144219651,0.0002,70632.0,70628.0,0.02374777]
[1771144219874,0.0002,70632.0,70620.0,4e-05]
[1771144220099,0.0002,70632.0,70616.0,0.0021]
[1771144220100,0.22256691,70629.0,70616.0,0.0021]
[1771144220320,0.02300905,70624.0,70616.0,0.0021]
[1771144220547,0.09380664,70624.0,70616.0,0.0021]
[1771144220800,0.07080294,70619.0,70611.0,0.00012962]
[1771144221016,0.54520166,70621.0,70611.0,0.00012962]